fUST/lending_fUST_20250312
["ID","MTS","AMOUNT","RATE_DAILY","PERIOD"]
[356004500,1741792254074,-500.0,0.00022739,2]
[356004501,1741792254083,-952.89,0.00022739,2]
[356004502,1741792254096,-500.0,0.00022739,2]
[356004503,1741792254105,-505.55,0.00022739,2]
[356004504,1741792254114,-500.0,0.00022739,2]
[356004505,1741792254124,-500.0,0.00022739,2]
[356004506,1741792254134,-548.05,0.00022739,2]
[356004507,1741792254143,-720.36,0.00022739,2]
[356004508,1741792254152,-500.0,0.00022739,2]
[356004509,1741792254161,-500.0,0.00022739,2]
[356004510,1741792254171,-521.89993891,0.00022739,2]
[356004511,1741792254180,-500.0,0.00022739,2]
[356004512,1741792254189,-500.0,0.00022739,2]
[356004513,1741792254198,-500.0,0.00022739,2]
[356004514,1741792254207,-500.0,0.00022739,2]
[356004515,1741792254217,-500.0,0.00022739,2]
[356004516,1741792254226,-500.0,0.00022739,2]
[356004517,1741792254235,-500.0,0.00022739,2]
[356004518,1741792254245,-961.42,0.00022739,2]
[356004519,1741792254254,-500.0,0.00022739,2]
[356004520,1741792254264,-517.63,0.00022739,2]
[356004521,1741792254273,-500.0,0.00022739,2]
[356004522,1741792254283,-500.0,0.00022739,2]
[356004523,1741792254292,-805.22,0.00022739,2]
[356004524,1741792254302,-500.0,0.00022739,2]
[356004525,1741792254311,-500.0,0.00022739,2]
[356004526,1741792254320,-500.0,0.00022739,2]
[356004527,1741792254329,-748.27,0.00022739,2]
[356004528,1741792254342,-500.0,0.00022739,2]
[356004529,1741792254351,-1222.12,0.00022739,2]
[356004530,1741792254360,-500.0,0.00022739,2]
[356004531,1741792254371,-500.0,0.00022739,2]
[356004532,1741792254380,-1516.93,0.00022739,2]
[356004533,1741792254389,-500.0,0.00022739,2]
[356004534,1741792254399,-592.55,0.00022739,2]
[356004535,1741792254408,-500.0,0.00022739,2]
[356004536,1741792254418,-1250.76,0.00022739,2]
[356004537,1741792254427,-500.0,0.00022739,2]
[356004538,1741792254436,-301.93500586,0.00022739,2]
[356004539,1741792254446,-585.99868644,0.00022739,2]
[356004540,1741792254455,-2217.0,0.00022739,2]
[356004541,1741792254465,-500.0,0.00022739,2]
[356004542,1741792254475,-649.76,0.00022739,2]
[356004543,1741792254484,-500.0,0.00022739,2]
[356004544,1741792254494,-1047.2,0.00022739,2]
[356004545,1741792254504,-500.0,0.00022739,2]
[356004546,1741792254513,-500.0,0.00022739,2]
[356004547,1741792254523,-500.0,0.00022739,2]
[356004548,1741792254532,-500.0,0.00022739,2]
[356004549,1741792254542,-500.0,0.00022739,2]
[356004550,1741792254552,-1754.51,0.00022739,2]
[356004551,1741792254561,-500.0,0.00022739,2]
[356004552,1741792254571,-500.0,0.00022739,2]
[356004553,1741792254580,-500.0,0.00022739,2]
[356004554,1741792254593,-500.0,0.00022739,2]
[356004555,1741792254603,-500.0,0.00022739,2]
[356004556,1741792254613,-1167.74,0.00022739,2]
[356004557,1741792254622,-500.0,0.00022739,2]
[356004558,1741792254632,-848.2,0.00022739,2]
[356004559,1741792254641,-500.0,0.00022739,2]
[356004560,1741792254651,-500.0,0.00022739,2]
[356004561,1741792254661,-500.0,0.00022739,2]
[356004562,1741792254670,-500.0,0.00022739,2]
[356004563,1741792254679,-500.0,0.00022739,2]
[356004564,1741792254689,-500.0,0.00022739,2]
[356004565,1741792254698,-1256.66,0.00022739,2]
[356004566,1741792254708,-500.0,0.00022739,2]
[356004567,1741792254717,-1791.25,0.00022739,2]
[356004568,1741792254727,-968.83,0.00022739,2]
[356004569,1741792254736,-500.0,0.00022739,2]
[356004570,1741792254746,-500.0,0.00022739,2]
[356004571,1741792254759,-970.37,0.00022739,2]
[356004572,1741792254768,-500.0,0.00022739,2]
[356004573,1741792254778,-543.68,0.00022739,2]
[356004574,1741792254787,-500.0,0.00022739,2]
[356004575,1741792254797,-578.52,0.00022739,5]
[356004576,1741792254807,-665.39,0.00022739,2]
[356004577,1741792254816,-500.0,0.00022739,2]
[356004578,1741792254826,-500.0,0.00022739,2]
[356004579,1741792254837,-500.49,0.00022739,2]
[356004580,1741792254849,-500.0,0.00022739,2]
[356004581,1741792254858,-500.0,0.00022739,2]
[356004582,1741792254867,-1310.88,0.00022739,2]
[356004583,1741792254876,-500.0,0.00022739,2]
[356004584,1741792254885,-9090.63,0.00022739,2]
[356004585,1741792254895,-689.9,0.00022739,2]
[356004586,1741792254904,-570.59,0.00022739,2]
[356004587,1741792254913,-500.0,0.00022739,2]
[356004588,1741792254923,-1827.46,0.00022739,2]
[356004589,1741792254932,-500.0,0.00022739,2]
[356004590,1741792254942,-500.0,0.00022739,2]
[356004591,1741792254951,-500.0,0.00022739,2]
[356004592,1741792254960,-1019.17,0.00022739,2]
[356004593,1741792254970,-799.92,0.00022739,2]
[356004594,1741792254979,-1095.79,0.00022739,2]
[356004595,1741792254988,-500.0,0.00022739,2]
[356004596,1741792254998,-2062.19,0.00022739,2]
[356004597,1741792255008,-500.0,0.00022739,2]
[356004598,1741792255018,-1431.16,0.00022739,2]
[356004599,1741792255028,-500.0,0.00022739,2]
[356004600,1741792255038,-500.0,0.00022739,2]
[356004601,1741792255047,-913.6,0.00022739,2]
[356004602,1741792255056,-500.0,0.00022739,2]
[356004603,1741792255066,-500.0,0.00022739,2]
[356004604,1741792255076,-500.0,0.00022739,2]
[356004605,1741792255085,-500.0,0.00022739,2]
[356004606,1741792255100,-500.0,0.00022739,2]
[356004607,1741792255110,-1787.17,0.00022739,2]
[356004608,1741792255120,-825.75,0.00022739,2]
[356004609,1741792255130,-500.0,0.00022739,2]
[356004610,1741792255139,-500.0,0.00022739,2]
[356004611,1741792255149,-500.0,0.00022739,2]
[356004612,1741792255159,-500.0,0.00022739,2]
[356004613,1741792255169,-516.68,0.00022739,2]
[356004614,1741792255179,-500.0,0.00022739,2]
[356004615,1741792255190,-1187.34,0.00022739,2]
[356004616,1741792255199,-500.0,0.00022739,2]
[356004617,1741792255209,-291.12440306,0.00022739,2]
[356004618,1741792255219,-500.0,0.00022739,2]
[356004619,1741792255228,-729.37,0.00022739,2]
[356004620,1741792255238,-500.0,0.00022739,2]
[356004621,1741792255247,-1008.35,0.00022739,2]
[356004622,1741792255256,-969.36,0.00022739,2]
[356004623,1741792255265,-500.0,0.00022739,2]
[356004624,1741792255275,-500.0,0.00022739,2]
[356004625,1741792255285,-500.0,0.00022739,2]
[356004626,1741792255295,-1564.59,0.00022739,2]
[356004627,1741792255304,-693.24,0.00022739,2]
[356004628,1741792255313,-500.0,0.00022739,2]
[356004629,1741792255322,-1314.1,0.00022739,2]
[356004630,1741792255332,-500.0,0.00022739,2]
[356004631,1741792255344,-1096.4,0.00022739,2]
[356004632,1741792255354,-500.0,0.00022739,2]
[356004633,1741792255363,-500.0,0.00022739,2]
[356004634,1741792255373,-500.0,0.00022739,2]
[356004635,1741792255382,-1528.25,0.00022739,2]
[356004636,1741792255391,-1303.06,0.00022739,2]
[356004637,1741792255400,-500.0,0.00022739,2]
[356004638,1741792255409,-500.0,0.00022739,2]
[356004639,1741792255419,-500.0,0.00022739,2]
[356004640,1741792255428,-568.06,0.00022739,2]
[356004641,1741792255437,-500.0,0.00022739,2]
[356004642,1741792255446,-506.56533972,0.00022739,2]
[356004643,1741792255455,-2094.41,0.00022739,2]
[356004644,1741792255464,-1765.23,0.00022739,2]
[356004645,1741792255473,-505.39198168,0.00022739,2]
[356004646,1741792255483,-544.36471225,0.00022739,2]
[356004647,1741792255492,-500.0,0.00022739,2]
[356004648,1741792255501,-1840.33,0.00022739,2]
[356004649,1741792255510,-522.0774385,0.00022739,2]
[356004650,1741792255520,-500.0,0.00022739,2]
[356004651,1741792255529,-500.0,0.00022739,2]
[356004652,1741792255539,-1707.8,0.00022739,2]
[356004653,1741792255548,-17448.18,0.00022739,2]
[356004654,1741792255558,-500.0,0.00022739,2]
[356004655,1741792255567,-500.0,0.00022739,2]
[356004656,1741792255577,-500.0,0.00022739,2]
[356004657,1741792255587,-500.0,0.00022739,2]
[356004658,1741792255597,-871.73,0.00022739,2]
[356004659,1741792255606,-17540.73,0.00022739,2]
[356004660,1741792255615,-1257.96,0.00022739,2]
[356004661,1741792255625,-500.0,0.00022739,2]
[356004662,1741792255634,-987.72,0.00022739,2]
[356004663,1741792255643,-504.2375771,0.00022739,2]
[356004664,1741792255653,-500.0,0.00022739,2]
[356004665,1741792255662,-500.0,0.00022739,2]
[356004666,1741792255671,-500.0,0.00022739,2]
[356004667,1741792255680,-500.0,0.00022739,2]
[356004668,1741792255690,-500.0,0.00022739,2]
[356004669,1741792255699,-1653.89,0.00022739,2]
[356004670,1741792255708,-500.0,0.00022739,2]
[356004671,1741792255718,-500.0,0.00022739,2]
[356004672,1741792255727,-2588.87,0.00022739,2]
[356004673,1741792255736,-500.0,0.00022739,2]
[356004674,1741792255749,-581.26053076,0.00022739,2]
[356004675,1741792255758,-500.0,0.00022739,2]
[356004676,1741792255767,-548.36,0.00022739,2]
[356004677,1741792255776,-554.68,0.00022739,2]
[356004678,1741792255787,-500.0,0.00022739,2]
[356004679,1741792255797,-500.0,0.00022739,2]
[356004680,1741792255909,-500.0,0.00022739,2]
[356004681,1741792255919,-500.0,0.00022739,2]
[356004682,1741792255929,-500.0,0.00022739,2]
[356004683,1741792255939,-5475.63,0.00022739,2]
[356004684,1741792255948,-1148.17,0.00022739,2]
[356004685,1741792255958,-1852.08,0.00022739,2]
[356004686,1741792255967,-500.0,0.00022739,2]
[356004687,1741792255977,-2754.36,0.00022739,2]
[356004688,1741792255987,-500.0,0.00022739,2]
[356004689,1741792255996,-160.75387868,0.00022739,2]
[356004690,1741792256006,-500.0,0.00022739,2]
[356004691,1741792256016,-1284.32,0.00022739,2]
[356004692,1741792256026,-2933.77,0.00022739,2]
[356004693,1741792256036,-1000.0,0.00022739,7]
[356004694,1741792256046,-500.0,0.00022739,2]
[356004695,1741792256055,-1749.18,0.00022739,2]
[356004696,1741792256065,-568.32383695,0.00022739,2]
[356004697,1741792256074,-500.0,0.00022739,2]
[356004698,1741792256084,-658.79,0.00022739,2]
[356004699,1741792256096,-2372.18,0.00022739,2]
[356004700,1741792256105,-1346.07,0.00022739,2]
[356004701,1741792256114,-349.70991713,0.00022739,2]
[356004702,1741792256380,-726.66008287,0.00022739,2]
[356004703,1741792256390,-500.0,0.00022739,2]
[356004704,1741792256400,-2866.92469593,0.00022739,2]
[356004705,1741792256412,-389.17530407,0.00022739,2]
[356004706,1741792256421,-35.69916438,0.00022739,2]
[356004707,1741792256433,-464.30083562,0.00022739,2]
[356004708,1741792256442,-100.49250609,0.00022739,2]
[356004709,1741792256453,-399.50749391,0.00022739,2]
[356004710,1741792256463,-7.40750609,0.00022739,2]
[356004711,1741792257031,-500.0,0.00016447,2]
[356004712,1741792257041,-500.0,0.00016447,2]
[356004713,1741792257050,-500.0,0.00016447,2]
[356004714,1741792257060,-137.94470898,0.00016447,2]
[356004715,1741792257071,-362.05529102,0.00016447,2]
[356004716,1741792257081,-500.0,0.00016447,2]
[356004717,1741792257092,-327.49491726,0.00016447,2]
[356004718,1741792257132,-172.50508274,0.00016447,2]
[356004719,1741792257143,-500.0,0.00016447,2]
[356004720,1741792257153,-500.0,0.00016447,2]
[356004721,1741792257162,-500.0,0.00016447,2]
[356004722,1741792257172,-500.0,0.00016447,2]
[356004723,1741792257181,-500.0,0.00016447,2]
[356004724,1741792257191,-52.29504206,0.00016447,2]
[356004725,1741792257203,-447.70495794,0.00016447,2]
[356004726,1741792257213,-500.0,0.00016447,2]
[356004727,1741792257223,-500.0,0.00016447,2]
[356004728,1741792257233,-500.0,0.00016447,2]
[356004729,1741792257242,-66.40913148,0.00016447,2]
[356004730,1741792257953,-433.59086852,0.00016447,2]
[356004731,1741792257963,-500.0,0.00016447,2]
[356004732,1741792257973,-391.47806013,0.00016447,2]
[356004733,1741792257983,-500.0,0.00016447,2]
[356004734,1741792257992,-500.0,0.00016447,2]
[356004735,1741792258002,-500.0,0.00016447,2]
[356004736,1741792258012,-500.0,0.00016447,2]
[356004737,1741792258021,-500.0,0.00016447,2]
[356004738,1741792258030,-224.93107135,0.00016447,2]
[356004739,1741792258042,-275.06892865,0.00016447,2]
[356004740,1741792258051,-500.0,0.00016447,2]
[356004741,1741792258060,-500.0,0.00016447,2]
[356004742,1741792258069,-500.0,0.00016447,2]
[356004743,1741792258079,-500.0,0.00016447,2]
[356004744,1741792258090,-500.0,0.00016447,2]
[356004745,1741792258099,-500.0,0.00016447,2]
[356004746,1741792258109,-500.0,0.00016447,2]
[356004747,1741792258119,-500.0,0.00016447,2]
[356004748,1741792258129,-500.0,0.00016447,2]
[356004749,1741792258140,-500.0,0.00016447,2]
[356004750,1741792258149,-500.0,0.00016447,2]
[356004751,1741792258159,-500.0,0.00016447,2]
[356004752,1741792258169,-500.0,0.00016447,2]
[356004753,1741792258179,-500.0,0.00016447,2]
[356004754,1741792258188,-500.0,0.00016447,2]
[356004755,1741792258198,-500.0,0.00016447,2]
[356004756,1741792258207,-500.0,0.00016447,2]
[356004757,1741792258217,-500.0,0.00016447,2]
[356004758,1741792258226,-500.0,0.00016447,2]
[356004759,1741792258235,-500.0,0.00016447,2]
[356004760,1741792258244,-500.0,0.00016447,2]
[356004761,1741792258254,-500.0,0.00016447,2]
[356004762,1741792258263,-500.0,0.00016447,2]
[356004763,1741792258273,-380.5463307,0.00016447,2]
[356004764,1741792258283,-525.285,0.00019806,2]
[356004765,1741792258293,-398.0,0.00019806,2]
[356004766,1741792258303,-500.0,0.00021917,2]
[356004767,1741792258312,-500.0,0.00021917,2]
[356004768,1741792258322,-250.51698514,0.00021917,2]
[356004769,1741792258332,-502.83892634,0.00021917,2]
[356004770,1741792258343,-500.0,0.00021917,2]
[356004771,1741792258353,-500.0,0.00021917,2]
[356004772,1741792258363,-500.0,0.00021917,2]
[356004773,1741792258374,-500.0,0.00021917,2]
[356004774,1741792258383,-500.0,0.00021917,2]
[356004775,1741792258392,-2200.0,0.00021952,2]
[356004776,1741792258402,-253.81636292,0.00022191,2]
[356004777,1741792258412,-500.0,0.00022191,2]
[356004778,1741792258421,-500.0,0.00022191,2]
[356004779,1741792258431,-500.0,0.00022191,2]
[356004780,1741792258440,-500.0,0.00022191,2]
[356004781,1741792258450,-500.0,0.00022191,2]
[356004782,1741792258459,-541.24,0.00022191,2]
[356004783,1741792258468,-500.0,0.00022465,2]
[356004784,1741792258478,-500.0,0.00022465,2]
[356004785,1741792258487,-500.0,0.00022465,2]
[356004786,1741792258496,-500.0,0.00022465,2]
[356004787,1741792258506,-492.59249391,0.00022739,2]
[356004788,1741792258515,-965.8,0.00022739,2]
[356004789,1741792258525,-1485.46,0.00022739,2]
[356004790,1741792258534,-1108.13,0.00022739,2]
[356004791,1741792258544,-590.63709165,0.00022739,2]
[356004792,1741792258554,-500.0,0.00022739,2]
[356004793,1741792258564,-878.94,0.00022739,2]
[356004794,1741792258574,-2094.2,0.00022739,2]
[356004795,1741792258583,-500.0,0.00022739,2]
[356004796,1741792258595,-515.03,0.00022739,2]
[356004797,1741792258606,-840.71,0.00022739,2]
[356004798,1741792258615,-970.17,0.00022739,2]
[356004799,1741792258625,-500.0,0.00022739,2]
[356004800,1741792258634,-847.81,0.00022739,2]
[356004801,1741792258644,-1327.16,0.00022739,2]
[356004802,1741792258654,-500.0,0.00022739,2]
[356004803,1741792258663,-526.83,0.00022739,2]
[356004804,1741792258673,-500.0,0.00022739,2]
[356004805,1741792258682,-500.0,0.00022739,2]
[356004806,1741792258691,-1248.88,0.00022739,2]
[356004807,1741792258700,-500.0,0.00022739,2]
[356004808,1741792258710,-1128.61,0.00022739,2]
[356004809,1741792258719,-2266.88,0.00022739,2]
[356004810,1741792258729,-500.0,0.00022739,2]
[356004811,1741792258739,-1792.9,0.00022739,2]
[356004812,1741792258752,-224.41571731,0.00022739,2]
[356004813,1741792258762,-532.04523779,0.00022739,2]
[356004814,1741792258771,-500.0,0.00022739,2]
[356004815,1741792258781,-500.0,0.00022739,2]
[356004816,1741792258791,-500.0,0.00022739,2]
[356004817,1741792258800,-508.17,0.00022739,2]
[356004818,1741792258810,-1624.2,0.00022739,2]
[356004819,1741792258819,-500.0,0.00022739,2]
[356004820,1741792258831,-500.0,0.00022739,2]
[356004821,1741792258841,-500.0,0.00022739,2]
[356004822,1741792258850,-1010.75,0.00022739,2]
[356004823,1741792258860,-500.0,0.00022739,2]
[356004824,1741792258870,-500.0,0.00022739,2]
[356004825,1741792258879,-4236.3,0.00022739,2]
[356004826,1741792258889,-9999.0,0.00022739,2]
[356004827,1741792258898,-500.0,0.00022739,2]
[356004828,1741792258908,-1158.76,0.00022739,2]
[356004829,1741792258918,-500.0,0.00022739,2]
[356004830,1741792258927,-2902.09,0.00022739,2]
[356004831,1741792258936,-500.0,0.00022739,2]
[356004832,1741792258946,-500.0,0.00022739,2]
[356004833,1741792258955,-500.0,0.00022739,2]
[356004834,1741792258965,-500.0,0.00022739,2]
[356004835,1741792258975,-573.75009041,0.00022739,2]
[356004836,1741792258984,-500.0,0.00022739,2]
[356004837,1741792258994,-398.0,0.00022806,2]
[356004838,1741792259004,-398.0,0.00022806,2]
[356004839,1741792259014,-150.0,0.00022884,2]
[356004840,1741792259024,-150.0,0.00022884,2]
[356004841,1741792259034,-540.0,0.00022884,2]
[356004842,1741792259043,-1920.0,0.00022884,2]
[356004843,1741792259052,-625.63862223,0.00023013,2]
[356004844,1741792259062,-500.0,0.00023013,2]
[356004845,1741792259175,-500.0,0.00023013,2]
[356004846,1741792259185,-500.0,0.00023013,2]
[356004847,1741792259195,-500.0,0.00023013,2]
[356004848,1741792259204,-500.0,0.00023013,2]
[356004849,1741792259213,-500.0,0.00023013,2]
[356004850,1741792259223,-500.0,0.00023013,2]
[356004851,1741792259232,-500.0,0.00023013,2]
[356004852,1741792259241,-500.0,0.00023013,2]
[356004853,1741792259251,-500.0,0.00023013,2]
[356004854,1741792259260,-500.0,0.00023013,2]
[356004855,1741792259269,-500.0,0.00023013,2]
[356004856,1741792259279,-500.0,0.00023013,2]
[356004857,1741792259289,-500.0,0.00023013,2]
[356004858,1741792259298,-500.0,0.00023013,2]
[356004859,1741792259308,-500.0,0.00023013,2]
[356004860,1741792259317,-500.0,0.00023013,2]
[356004861,1741792259327,-1982.34,0.00023013,2]
[356004862,1741792259337,-500.0,0.00023013,2]
[356004863,1741792259349,-500.0,0.00023013,2]
[356004864,1741792259360,-500.0,0.00023013,2]
[356004865,1741792259370,-500.0,0.00023013,2]
[356004866,1741792259379,-500.0,0.00023013,2]
[356004867,1741792259389,-500.0,0.00023013,2]
[356004868,1741792259398,-500.0,0.00023013,2]
[356004869,1741792259407,-500.0,0.00023013,2]
[356004870,1741792259416,-616.62,0.00023013,2]
[356004871,1741792259426,-500.0,0.00023013,2]
[356004872,1741792259435,-500.0,0.00023013,2]
[356004873,1741792259444,-730.05,0.00023013,2]
[356004874,1741792259453,-500.0,0.00023013,2]
[356004875,1741792259463,-628.32,0.00023013,2]
[356004876,1741792259472,-500.0,0.00023013,2]
[356004877,1741792259482,-500.0,0.00023013,2]
[356004878,1741792259491,-1232.1,0.00023013,2]
[356004879,1741792259501,-500.0,0.00023013,2]
[356004880,1741792259510,-1096.39,0.00023013,2]
[356004881,1741792259519,-500.0,0.00023013,2]
[356004882,1741792259529,-500.0,0.00023013,2]
[356004883,1741792259538,-500.0,0.00023013,2]
[356004884,1741792259548,-500.0,0.00023013,2]
[356004885,1741792259557,-500.0,0.00023013,2]
[356004886,1741792259566,-500.0,0.00023013,2]
[356004887,1741792259576,-500.0,0.00023013,2]
[356004888,1741792259586,-500.0,0.00023013,2]
[356004889,1741792259597,-500.0,0.00023013,2]
[356004890,1741792259606,-500.0,0.00023013,2]
[356004891,1741792259616,-500.0,0.00023013,2]
[356004892,1741792259625,-1794.98,0.00023013,2]
[356004893,1741792259634,-546.24,0.00023013,2]
[356004894,1741792259644,-500.0,0.00023013,2]
[356004895,1741792259653,-1009.6,0.00023013,2]
[356004896,1741792259662,-500.0,0.00023013,2]
[356004897,1741792259671,-1581.81,0.00023013,2]
[356004898,1741792259681,-500.0,0.00023013,2]
[356004899,1741792259691,-500.0,0.00023013,2]
[356004900,1741792259700,-952.89,0.00023013,2]
[356004901,1741792259710,-500.0,0.00023013,2]
[356004902,1741792259718,-505.55,0.00023013,2]
[356004903,1741792259728,-500.0,0.00023013,2]
[356004904,1741792259737,-500.0,0.00023013,2]
[356004905,1741792259747,-548.05,0.00023013,2]
[356004906,1741792259759,-720.36,0.00023013,2]
[356004907,1741792259768,-500.0,0.00023013,2]
[356004908,1741792259778,-500.0,0.00023013,2]
[356004909,1741792259787,-500.0,0.00023013,2]
[356004910,1741792259798,-511.37775261,0.00023013,2]
[356004911,1741792259807,-500.0,0.00023013,2]
[356004912,1741792259817,-500.0,0.00023013,2]
[356004913,1741792259826,-270.21665236,0.00023013,2]
[356004914,1741792259839,-500.0,0.00023013,2]
[356004915,1741792259849,-500.0,0.00023013,2]
[356004916,1741792259859,-961.42,0.00023013,2]
[356004917,1741792259868,-500.0,0.00023013,2]
[356004918,1741792259879,-517.63,0.00023013,2]
[356004919,1741792259888,-500.0,0.00023013,2]
[356004920,1741792259898,-500.0,0.00023013,2]
[356004921,1741792259907,-805.22,0.00023013,2]
[356004922,1741792259917,-500.0,0.00023013,2]
[356004923,1741792259927,-500.0,0.00023013,2]
[356004924,1741792259936,-500.0,0.00023013,2]
[356004925,1741792259946,-748.27,0.00023013,2]
[356004926,1741792259956,-500.0,0.00023013,2]
[356004927,1741792259966,-1222.12,0.00023013,2]
[356004928,1741792259976,-500.0,0.00023013,2]
[356004929,1741792259986,-616.75612453,0.00023013,2]
[356004930,1741792259995,-1516.93,0.00023013,2]
[356004931,1741792260005,-500.0,0.00023013,2]
[356004932,1741792260015,-592.55,0.00023013,2]
[356004933,1741792260025,-500.0,0.00023013,2]
[356004934,1741792260035,-1250.76,0.00023013,2]
[356004935,1741792260045,-502.99029028,0.00023013,2]
[356004936,1741792260055,-2217.0,0.00023013,2]
[356004937,1741792260065,-500.0,0.00023013,2]
[356004938,1741792260075,-649.76,0.00023013,2]
[356004939,1741792260086,-500.0,0.00023013,2]
[356004940,1741792260097,-1047.2,0.00023013,2]
[356004941,1741792260106,-500.0,0.00023013,2]
[356004942,1741792260115,-500.0,0.00023013,2]
[356004943,1741792260124,-500.0,0.00023013,2]
[356004944,1741792260133,-507.27424931,0.00023013,2]
[356004945,1741792260144,-500.0,0.00023013,2]
[356004946,1741792260153,-1754.51,0.00023013,2]
[356004947,1741792260163,-500.0,0.00023013,2]
[356004948,1741792260172,-500.0,0.00023013,2]
[356004949,1741792260182,-500.0,0.00023013,2]
[356004950,1741792260191,-500.0,0.00023013,2]
[356004951,1741792260200,-500.0,0.00023013,2]
[356004952,1741792260209,-1167.74,0.00023013,2]
[356004953,1741792260219,-500.0,0.00023013,2]
[356004954,1741792260228,-848.2,0.00023013,2]
[356004955,1741792260238,-500.0,0.00023013,2]
[356004956,1741792260247,-500.0,0.00023013,2]
[356004957,1741792260257,-500.0,0.00023013,2]
[356004958,1741792260266,-500.0,0.00023013,2]
[356004959,1741792260276,-500.0,0.00023013,2]
[356004960,1741792260285,-500.0,0.00023013,2]
[356004961,1741792260295,-1256.66,0.00023013,2]
[356004962,1741792260305,-500.0,0.00023013,2]
[356004963,1741792260315,-1791.25,0.00023013,2]
[356004964,1741792260324,-968.83,0.00023013,2]
[356004965,1741792260334,-500.0,0.00023013,2]
[356004966,1741792260349,-500.0,0.00023013,2]
[356004967,1741792260360,-970.37,0.00023013,2]
[356004968,1741792260371,-500.0,0.00023013,2]
[356004969,1741792260381,-543.68,0.00023013,2]
[356004970,1741792260392,-500.0,0.00023013,2]
[356004971,1741792260402,-578.52,0.00023013,5]
[356004972,1741792260412,-665.39,0.00023013,2]
[356004973,1741792260422,-500.0,0.00023013,2]
[356004974,1741792260432,-500.0,0.00023013,2]
[356004975,1741792260442,-500.49,0.00023013,2]
[356004976,1741792260452,-500.0,0.00023013,2]
[356004977,1741792260462,-500.0,0.00023013,2]
[356004978,1741792260471,-1310.88,0.00023013,2]
[356004979,1741792260480,-500.0,0.00023013,2]
[356004980,1741792260490,-689.9,0.00023013,2]
[356004981,1741792260499,-570.59,0.00023013,2]
[356004982,1741792260508,-500.0,0.00023013,2]
[356004983,1741792260518,-500.0,0.00023013,2]
[356004984,1741792260527,-500.0,0.00023013,2]
[356004985,1741792260537,-500.0,0.00023013,2]
[356004986,1741792260546,-1019.17,0.00023013,2]
[356004987,1741792260556,-1095.79,0.00023013,2]
[356004988,1741792260566,-500.0,0.00023013,2]
[356004989,1741792260575,-2062.19,0.00023013,2]
[356004990,1741792260584,-500.0,0.00023013,2]
[356004991,1741792260596,-1431.16,0.00023013,2]
[356004992,1741792260606,-513.07576622,0.00023013,2]
[356004993,1741792260615,-500.0,0.00023013,2]
[356004994,1741792260625,-913.6,0.00023013,2]
[356004995,1741792260635,-500.0,0.00023013,2]
[356004996,1741792260644,-500.0,0.00023013,2]
[356004997,1741792260653,-500.0,0.00023013,2]
[356004998,1741792260663,-500.0,0.00023013,2]
[356004999,1741792260672,-500.0,0.00023013,2]